[Event "Late-Titled-Tuesday-Blitz-April-23-2024"]
[Site "Chess.com"]
[Date "2024.04.23"]
[Round "2"]
[White "Chessdude1987"]
[Black "lupta_robin"]
[Result "0-1"]
[WhiteElo "2369"]
[BlackElo "2570"]
[TimeControl "180+1"]
[EndTime "14:15:19 PDT"]
[Termination "lupta_robin won by resignation"]

1. e4 {[%clk 0:03:00.9]} 1... Nc6 {[%clk 0:02:59.4]} 2. d4 {[%clk 0:02:59.3]}
2... d5 {[%clk 0:02:58.7]} 3. e5 {[%clk 0:02:54.8]} 3... Bf5 {[%clk 0:02:58.7]}
4. c3 {[%clk 0:02:50.5]} 4... f6 {[%clk 0:02:58.8]} 5. Nf3 {[%clk 0:02:49.7]}
5... fxe5 {[%clk 0:02:57.8]} 6. dxe5 {[%clk 0:02:49.6]} 6... e6 {[%clk
0:02:56.2]} 7. Bb5 {[%clk 0:02:43.3]} 7... Ne7 {[%clk 0:02:50.9]} 8. Nd4 {[%clk
0:02:39.5]} 8... Qd7 {[%clk 0:02:46.2]} 9. O-O {[%clk 0:02:28.6]} 9... h6 {[%clk
0:02:28.3]} 10. Bxc6 {[%clk 0:01:50.9]} 10... bxc6 {[%clk 0:02:27.2]} 11. Nxf5
{[%clk 0:01:50.8]} 11... Nxf5 {[%clk 0:02:27.1]} 12. Nd2 {[%clk 0:01:49.3]}
12... Bc5 {[%clk 0:02:21.6]} 13. Nb3 {[%clk 0:01:41.4]} 13... Bb6 {[%clk
0:02:19.7]} 14. a4 {[%clk 0:01:37.8]} 14... a5 {[%clk 0:02:14.8]} 15. Qg4 {[%clk
0:01:33]} 15... O-O {[%clk 0:02:12.3]} 16. c4 {[%clk 0:01:18.1]} 16... dxc4
{[%clk 0:02:04.3]} 17. Qxc4 {[%clk 0:01:17.3]} 17... Qd5 {[%clk 0:02:04.9]} 18.
Qc2 {[%clk 0:01:05]} 18... Nh4 {[%clk 0:01:57.4]} 0-1

[Event "Late-Titled-Tuesday-Blitz-April-23-2024"]
[Site "Chess.com"]
[Date "2024.04.23"]
[Round "2"]
[White "mjelcic"]
[Black "HamedWafa4"]
[Result "0-1"]
[WhiteElo "2349"]
[BlackElo "2728"]
[TimeControl "180+1"]
[EndTime "14:15:26 PDT"]
[Termination "HamedWafa4 won by resignation"]

1. c4 {[%clk 0:03:00.9]} 1... e5 {[%clk 0:02:59.2]} 2. Nc3 {[%clk 0:02:59.6]}
2... Bb4 {[%clk 0:02:54.7]} 3. Nd5 {[%clk 0:02:58.4]} 3... Be7 {[%clk
0:02:51.4]} 4. g3 {[%clk 0:02:57.8]} 4... Nf6 {[%clk 0:02:50.9]} 5. Bg2 {[%clk
0:02:53.2]} 5... c6 {[%clk 0:02:49.2]} 6. Nxe7 {[%clk 0:02:52.6]} 6... Qxe7
{[%clk 0:02:50.1]} 7. d3 {[%clk 0:02:52.2]} 7... h6 {[%clk 0:02:48.9]} 8. e4
{[%clk 0:02:49.3]} 8... O-O {[%clk 0:02:47.2]} 9. Ne2 {[%clk 0:02:48.9]} 9... b5
{[%clk 0:02:44.2]} 10. O-O {[%clk 0:02:47.5]} 10... bxc4 {[%clk 0:02:43.9]} 11.
dxc4 {[%clk 0:02:47.3]} 11... Na6 {[%clk 0:02:43.2]} 12. h3 {[%clk 0:02:44.5]}
12... Nc5 {[%clk 0:02:42.3]} 13. Qc2 {[%clk 0:02:44.5]} 13... a5 {[%clk
0:02:39.1]} 14. Be3 {[%clk 0:02:44.4]} 14... Bb7 {[%clk 0:02:39]} 15. Rfd1
{[%clk 0:02:42.5]} 15... Rfd8 {[%clk 0:02:38.4]} 16. b3 {[%clk 0:02:37.9]} 16...
Ne6 {[%clk 0:02:38.4]} 17. Rd2 {[%clk 0:02:34.2]} 17... c5 {[%clk 0:02:36.6]}
18. Nc3 {[%clk 0:02:32.7]} 18... Nd4 {[%clk 0:02:33.6]} 19. Bxd4 {[%clk
0:02:33]} 19... cxd4 {[%clk 0:02:34.1]} 20. Nd5 {[%clk 0:02:32.8]} 20... Bxd5
{[%clk 0:02:33.8]} 21. exd5 {[%clk 0:02:32.8]} 21... Qc5 {[%clk 0:02:28.6]} 22.
Qf5 {[%clk 0:02:22.6]} 22... d6 {[%clk 0:02:26.7]} 23. g4 {[%clk 0:02:19.4]}
23... a4 {[%clk 0:02:24.5]} 24. Re1 {[%clk 0:02:10.1]} 24... axb3 {[%clk
0:02:23.6]} 25. axb3 {[%clk 0:02:11]} 25... Qb4 {[%clk 0:02:19.4]} 26. Red1
{[%clk 0:02:07.8]} 26... Qxb3 {[%clk 0:02:17.2]} 27. h4 {[%clk 0:02:08.3]} 27...
Nh7 {[%clk 0:02:03.7]} 28. c5 {[%clk 0:02:05.7]} 28... dxc5 {[%clk 0:02:00.9]}
29. d6 {[%clk 0:02:05]} 29... Ra6 {[%clk 0:01:56.3]} 30. Be4 {[%clk 0:02:02.3]}
30... Nf8 {[%clk 0:01:55.8]} 31. d7 {[%clk 0:01:55.4]} 31... Qe6 {[%clk
0:01:48.1]} 32. Rc1 {[%clk 0:01:47.3]} 32... Qxf5 {[%clk 0:01:45.9]} 33. Bxf5
{[%clk 0:01:48.2]} 33... Nxd7 {[%clk 0:01:46.5]} 34. Bxd7 {[%clk 0:01:48.2]}
34... Rxd7 {[%clk 0:01:47.4]} 35. Rxc5 {[%clk 0:01:48.6]} 35... Re6 {[%clk
0:01:47.6]} 36. f3 {[%clk 0:01:46.2]} 36... e4 {[%clk 0:01:44.5]} 37. fxe4
{[%clk 0:01:35.1]} 37... Rxe4 {[%clk 0:01:45.4]} 38. Rg2 {[%clk 0:01:35.5]}
38... d3 {[%clk 0:01:44.9]} 39. Rc1 {[%clk 0:01:35.6]} 39... d2 {[%clk
0:01:44.5]} 40. Rd1 {[%clk 0:01:34.9]} 40... Re1+ {[%clk 0:01:43.7]} 0-1

[Event "Late-Titled-Tuesday-Blitz-April-23-2024"]
[Site "Chess.com"]
[Date "2024.04.23"]
[Round "2"]
[White "Road2GM3000"]
[Black "GoltsevDmitry2000"]
[Result "0-1"]
[WhiteElo "2451"]
[BlackElo "2755"]
[TimeControl "180+1"]
[EndTime "14:15:31 PDT"]
[Termination "GoltsevDmitry2000 won by resignation"]

1. d4 {[%clk 0:03:00.9]} 1... e6 {[%clk 0:02:58.9]} 2. c4 {[%clk 0:03:01.4]}
2... d5 {[%clk 0:02:58.8]} 3. cxd5 {[%clk 0:03:01.9]} 3... exd5 {[%clk
0:02:58.8]} 4. Nc3 {[%clk 0:03:02.8]} 4... c6 {[%clk 0:02:59.3]} 5. Nf3 {[%clk
0:03:03.5]} 5... Nf6 {[%clk 0:02:59.4]} 6. Bg5 {[%clk 0:03:04.2]} 6... Bd6
{[%clk 0:02:59.6]} 7. e3 {[%clk 0:03:04.8]} 7... h6 {[%clk 0:02:59.9]} 8. Bd3
{[%clk 0:03:05.6]} 8... hxg5 {[%clk 0:02:59.9]} 9. Nxg5 {[%clk 0:03:06.2]} 9...
Bg4 {[%clk 0:02:52.9]} 10. f3 {[%clk 0:03:05.6]} 10... Bd7 {[%clk 0:02:52.8]}
11. Qc2 {[%clk 0:03:03.2]} 11... Bg3+ {[%clk 0:02:46.5]} 12. Kd2 {[%clk
0:03:01.8]} 12... Bh4 {[%clk 0:02:43.9]} 13. f4 {[%clk 0:02:48.1]} 13... Ng4
{[%clk 0:02:30.1]} 14. Nf3 {[%clk 0:02:45.2]} 14... Nf2 {[%clk 0:02:21.8]} 15.
Rhf1 {[%clk 0:02:44.7]} 15... Nxd3 {[%clk 0:02:21.7]} 16. Qxd3 {[%clk
0:02:45.1]} 16... Bf6 {[%clk 0:02:22.2]} 17. h3 {[%clk 0:02:44.7]} 17... Na6
{[%clk 0:02:21.7]} 18. a3 {[%clk 0:02:44.6]} 18... Nc7 {[%clk 0:02:21.2]} 19. g4
{[%clk 0:02:44.7]} 19... g6 {[%clk 0:02:11.7]} 20. g5 {[%clk 0:02:42.3]} 20...
Bg7 {[%clk 0:02:06.4]} 21. h4 {[%clk 0:02:42.5]} 21... Bf5 {[%clk 0:02:04.8]}
22. Qe2 {[%clk 0:02:31.8]} 22... Qe7 {[%clk 0:02:04.3]} 23. Rac1 {[%clk
0:02:30.3]} 23... O-O-O {[%clk 0:02:02.7]} 24. Ne5 {[%clk 0:02:27.8]} 24... Bxe5
{[%clk 0:02:02.3]} 25. fxe5 {[%clk 0:02:28.3]} 25... Rxh4 {[%clk 0:02:01.6]} 26.
b4 {[%clk 0:02:28.4]} 26... Kb8 {[%clk 0:01:55.5]} 27. b5 {[%clk 0:02:27.5]}
27... Nxb5 {[%clk 0:01:48.1]} 28. Nxb5 {[%clk 0:02:27.4]} 28... cxb5 {[%clk
0:01:49]} 29. Rc5 {[%clk 0:02:24.6]} 29... a6 {[%clk 0:01:43]} 30. a4 {[%clk
0:02:23.7]} 30... Qxg5 {[%clk 0:01:34.5]} 31. axb5 {[%clk 0:02:23.4]} 31...
Rxd4+ {[%clk 0:01:34.2]} 32. Kc3 {[%clk 0:02:23.1]} 32... Rc4+ {[%clk
0:01:28.1]} 33. Rxc4 {[%clk 0:02:23.7]} 33... dxc4 {[%clk 0:01:29]} 34. bxa6
{[%clk 0:02:24.2]} 34... Rd3+ {[%clk 0:01:19.5]} 35. Kxc4 {[%clk 0:02:24.9]}
35... Qxe3 {[%clk 0:01:08.3]} 36. Qxe3 {[%clk 0:02:07.1]} 36... Rxe3 {[%clk
0:01:09.2]} 37. Kd4 {[%clk 0:02:05.8]} 37... Rd3+ {[%clk 0:01:05.1]} 38. Kc5
{[%clk 0:02:05.6]} 38... Rd7 {[%clk 0:01:02.9]} 39. axb7 {[%clk 0:02:05.3]}
39... Kxb7 {[%clk 0:01:03.8]} 40. Rb1+ {[%clk 0:02:04.3]} 40... Bxb1 {[%clk
0:01:02.8]} 0-1

[Event "Late-Titled-Tuesday-Blitz-April-23-2024"]
[Site "Chess.com"]
[Date "2024.04.23"]
[Round "2"]
[White "BardArtem"]
[Black "Josetricks"]
[Result "1-0"]
[WhiteElo "2822"]
[BlackElo "2578"]
[TimeControl "180+1"]
[EndTime "14:15:39 PDT"]
[Termination "BardArtem won by resignation"]

1. e4 {[%clk 0:03:00.9]} 1... g6 {[%clk 0:03:00.9]} 2. d4 {[%clk 0:03:00.4]}
2... Bg7 {[%clk 0:02:59.4]} 3. Nc3 {[%clk 0:03:01.1]} 3... c6 {[%clk 0:02:58.4]}
4. Bc4 {[%clk 0:02:59.4]} 4... b5 {[%clk 0:02:58.3]} 5. Bb3 {[%clk 0:02:59.4]}
5... a5 {[%clk 0:02:59.2]} 6. a3 {[%clk 0:02:59]} 6... e6 {[%clk 0:02:49]} 7.
Nf3 {[%clk 0:02:58.1]} 7... d5 {[%clk 0:02:48.3]} 8. e5 {[%clk 0:02:58.3]} 8...
Nd7 {[%clk 0:02:42.8]} 9. Ne2 {[%clk 0:02:58.3]} 9... c5 {[%clk 0:02:42.4]} 10.
c3 {[%clk 0:02:58.4]} 10... Nh6 {[%clk 0:02:42.6]} 11. Bc2 {[%clk 0:02:56.8]}
11... Ba6 {[%clk 0:02:35.5]} 12. h4 {[%clk 0:02:56]} 12... Nf5 {[%clk
0:02:34.2]} 13. h5 {[%clk 0:02:55.4]} 13... Qb6 {[%clk 0:02:27.7]} 14. h6 {[%clk
0:02:46.6]} 14... Bf8 {[%clk 0:02:27.1]} 15. Bxf5 {[%clk 0:02:39.1]} 15... gxf5
{[%clk 0:02:21.4]} 16. Nf4 {[%clk 0:02:38.3]} 16... b4 {[%clk 0:02:18.5]} 17.
axb4 {[%clk 0:02:36.1]} 17... axb4 {[%clk 0:02:16.9]} 18. Ng5 {[%clk 0:02:32.2]}
18... bxc3 {[%clk 0:02:05.5]} 19. Qh5 {[%clk 0:02:11.3]} 19... O-O-O {[%clk
0:01:55.2]} 20. bxc3 {[%clk 0:02:04.2]} 20... cxd4 {[%clk 0:01:40.2]} 21. Qxf7
{[%clk 0:01:53]} 21... dxc3 {[%clk 0:01:29.9]} 22. Qxe6 {[%clk 0:01:51.2]} 22...
Qxe6 {[%clk 0:01:18.9]} 23. Nfxe6 {[%clk 0:01:46.6]} 23... Bc4 {[%clk
0:01:16.4]} 24. Ra8+ {[%clk 0:01:39.9]} 24... Nb8 {[%clk 0:01:10.5]} 25. Nxd8
{[%clk 0:01:32.5]} 25... Kxd8 {[%clk 0:01:03.6]} 26. Rxb8+ {[%clk 0:01:32.7]}
26... Kc7 {[%clk 0:01:04.2]} 27. Rxf8 {[%clk 0:01:32.5]} 1-0

[Event "Late-Titled-Tuesday-Blitz-April-23-2024"]
[Site "Chess.com"]
[Date "2024.04.23"]
[Round "2"]
[White "PedroGil25"]
[Black "Janh4"]
[Result "1-0"]
[WhiteElo "2490"]
[BlackElo "2200"]
[TimeControl "180+1"]
[EndTime "14:15:40 PDT"]
[Termination "PedroGil25 won by resignation"]

1. c4 {[%clk 0:03:00.9]} 1... e6 {[%clk 0:02:59.7]} 2. Nf3 {[%clk 0:02:59.7]}
2... d5 {[%clk 0:03:00]} 3. g3 {[%clk 0:02:58.8]} 3... Nf6 {[%clk 0:03:00.1]} 4.
Bg2 {[%clk 0:02:58.8]} 4... Be7 {[%clk 0:03:00.7]} 5. O-O {[%clk 0:02:58.1]}
5... O-O {[%clk 0:03:01.2]} 6. b3 {[%clk 0:02:58.7]} 6... b6 {[%clk 0:03:00.6]}
7. Bb2 {[%clk 0:02:59]} 7... Bb7 {[%clk 0:03:00.7]} 8. d3 {[%clk 0:02:58.8]}
8... Nbd7 {[%clk 0:03:01]} 9. Nc3 {[%clk 0:02:56.3]} 9... c5 {[%clk 0:02:59.3]}
10. cxd5 {[%clk 0:02:56.2]} 10... Nxd5 {[%clk 0:02:56.1]} 11. Nxd5 {[%clk
0:02:52.4]} 11... Bxd5 {[%clk 0:02:52.6]} 12. d4 {[%clk 0:02:52.2]} 12... cxd4
{[%clk 0:02:50.3]} 13. Qxd4 {[%clk 0:02:53.1]} 13... Bf6 {[%clk 0:02:47.8]} 14.
Qd2 {[%clk 0:02:53.6]} 14... Bxb2 {[%clk 0:02:47]} 15. Qxb2 {[%clk 0:02:54.5]}
15... Qf6 {[%clk 0:02:45.6]} 16. Qxf6 {[%clk 0:02:53.4]} 16... Nxf6 {[%clk
0:02:45.8]} 17. Rfd1 {[%clk 0:02:54.2]} 17... Rfd8 {[%clk 0:02:43.5]} 18. Ne5
{[%clk 0:02:53.9]} 18... Bxg2 {[%clk 0:02:42.6]} 19. Kxg2 {[%clk 0:02:54.8]}
19... Rxd1 {[%clk 0:02:02.3]} 20. Rxd1 {[%clk 0:02:53.5]} 20... Rc8 {[%clk
0:02:01.7]} 21. Nc6 {[%clk 0:02:50.6]} 21... Kf8 {[%clk 0:01:58.8]} 22. Ne5
{[%clk 0:02:33.7]} 22... Ke7 {[%clk 0:01:53.7]} 23. Rd2 {[%clk 0:02:33.1]} 23...
Rc7 {[%clk 0:01:43.9]} 24. h4 {[%clk 0:02:32.3]} 24... Nd5 {[%clk 0:01:33.3]}
25. e4 {[%clk 0:02:31.8]} 25... Nf6 {[%clk 0:01:32.6]} 26. f3 {[%clk 0:02:31.3]}
26... h5 {[%clk 0:01:28.6]} 27. Kf2 {[%clk 0:02:30.9]} 27... g6 {[%clk
0:01:24.7]} 28. Ke3 {[%clk 0:02:29.7]} 28... Rc3+ {[%clk 0:01:22.2]} 29. Kf2
{[%clk 0:02:24.2]} 29... Rc7 {[%clk 0:01:15.3]} 30. Ke3 {[%clk 0:02:19.4]} 30...
Rc3+ {[%clk 0:01:14.8]} 31. Kf4 {[%clk 0:02:20]} 31... Rc7 {[%clk 0:01:10.1]}
32. b4 {[%clk 0:02:18.1]} 32... Ne8 {[%clk 0:01:06.8]} 33. b5 {[%clk 0:02:16.4]}
33... Nd6 {[%clk 0:01:04.2]} 34. Nc6+ {[%clk 0:02:14.4]} 1-0

[Event "Late-Titled-Tuesday-Blitz-April-23-2024"]
[Site "Chess.com"]
[Date "2024.04.23"]
[Round "2"]
[White "reevecanada"]
[Black "Vladimir_Zakhartsov"]
[Result "0-1"]
[WhiteElo "2614"]
[BlackElo "2915"]
[TimeControl "180+1"]
[EndTime "14:15:47 PDT"]
[Termination "Vladimir_Zakhartsov won by resignation"]

1. e4 {[%clk 0:02:54.7]} 1... c5 {[%clk 0:02:56.8]} 2. Nf3 {[%clk 0:02:54.7]}
2... g6 {[%clk 0:02:54.9]} 3. d4 {[%clk 0:02:54]} 3... cxd4 {[%clk 0:02:54.2]}
4. Qxd4 {[%clk 0:02:54.1]} 4... Nf6 {[%clk 0:02:54.6]} 5. e5 {[%clk 0:02:54.8]}
5... Nc6 {[%clk 0:02:53.6]} 6. Qa4 {[%clk 0:02:55.3]} 6... Nd5 {[%clk
0:02:50.4]} 7. Qe4 {[%clk 0:02:55.2]} 7... Nc7 {[%clk 0:02:48.2]} 8. Nc3 {[%clk
0:02:52.3]} 8... Bg7 {[%clk 0:02:47]} 9. Bf4 {[%clk 0:02:51.8]} 9... Ne6 {[%clk
0:02:45.8]} 10. Kd1 {[%clk 0:02:52.2]} 10... Nxf4 {[%clk 0:02:40.7]} 11. Qxf4
{[%clk 0:02:48]} 11... O-O {[%clk 0:02:19.9]} 12. Bc4 {[%clk 0:02:44.2]} 12...
Qb6 {[%clk 0:02:08.4]} 13. Kc1 {[%clk 0:02:35.2]} 13... Qxf2 {[%clk 0:02:03.3]}
14. Ne4 {[%clk 0:02:32.3]} 14... Qb6 {[%clk 0:01:46.6]} 15. Neg5 {[%clk
0:02:05.4]} 15... Nd8 {[%clk 0:01:25.2]} 16. h4 {[%clk 0:01:59.9]} 16... h6
{[%clk 0:01:10.8]} 17. Ne4 {[%clk 0:01:56.8]} 17... d6 {[%clk 0:01:08.6]} 18.
exd6 {[%clk 0:01:52.5]} 18... Qxb2+ {[%clk 0:00:57.7]} 19. Kd2 {[%clk
0:01:49.8]} 19... Qb4+ {[%clk 0:00:51.8]} 20. Kd3 {[%clk 0:01:45.5]} 20... Qa3+
{[%clk 0:00:46]} 21. c3 {[%clk 0:01:44.8]} 21... Bf5 {[%clk 0:00:44.2]} 22. h5
{[%clk 0:01:35.9]} 22... Qxc3+ {[%clk 0:00:43.1]} 23. Ke2 {[%clk 0:01:33.5]}
23... Qxc4+ {[%clk 0:00:43.4]} 0-1

[Event "Late-Titled-Tuesday-Blitz-April-23-2024"]
[Site "Chess.com"]
[Date "2024.04.23"]
[Round "2"]
[White "VojtechPlat"]
[Black "ansko1999"]
[Result "1-0"]
[WhiteElo "2858"]
[BlackElo "2600"]
[TimeControl "180+1"]
[EndTime "14:15:47 PDT"]
[Termination "VojtechPlat won by checkmate"]

1. e4 {[%clk 0:02:59.6]} 1... d6 {[%clk 0:02:58.9]} 2. d4 {[%clk 0:02:59.4]}
2... Nf6 {[%clk 0:02:59.3]} 3. Nc3 {[%clk 0:03:00.1]} 3... c6 {[%clk 0:02:59.3]}
4. Nf3 {[%clk 0:02:59.8]} 4... Qa5 {[%clk 0:02:43.2]} 5. Bd3 {[%clk 0:02:58.5]}
5... e5 {[%clk 0:02:42.6]} 6. h3 {[%clk 0:02:53.6]} 6... Nbd7 {[%clk 0:02:38.3]}
7. O-O {[%clk 0:02:53.3]} 7... Be7 {[%clk 0:02:34.1]} 8. Be3 {[%clk 0:02:53]}
8... O-O {[%clk 0:02:33.7]} 9. Ne2 {[%clk 0:02:52.3]} 9... exd4 {[%clk
0:02:32.5]} 10. Nexd4 {[%clk 0:02:52.1]} 10... Nc5 {[%clk 0:02:31.4]} 11. Bd2
{[%clk 0:02:52]} 11... Qc7 {[%clk 0:02:29]} 12. Re1 {[%clk 0:02:51.9]} 12... Re8
{[%clk 0:02:25.5]} 13. Bf4 {[%clk 0:02:49.3]} 13... Bf8 {[%clk 0:02:19.4]} 14.
e5 {[%clk 0:02:49.2]} 14... Nxd3 {[%clk 0:02:17.8]} 15. Qxd3 {[%clk 0:02:48.8]}
15... dxe5 {[%clk 0:02:15.6]} 16. Bxe5 {[%clk 0:02:49.1]} 16... Qd8 {[%clk
0:02:14.1]} 17. Ng5 {[%clk 0:02:46.2]} 17... g6 {[%clk 0:01:57.9]} 18. Qf3
{[%clk 0:02:44.2]} 18... Bg7 {[%clk 0:01:50.2]} 19. Rad1 {[%clk 0:02:43.5]}
19... h6 {[%clk 0:01:26.4]} 20. Nxc6 {[%clk 0:02:36]} 20... Qb6 {[%clk
0:01:07.3]} 21. Bxf6 {[%clk 0:02:33.3]} 21... Rxe1+ {[%clk 0:00:30.5]} 22. Rxe1
{[%clk 0:02:33]} 22... Bxf6 {[%clk 0:00:31.1]} 23. Qxf6 {[%clk 0:02:20.3]} 23...
Qxc6 {[%clk 0:00:03.8]} 24. Qxf7+ {[%clk 0:02:19.7]} 24... Kh8 {[%clk
0:00:04.2]} 25. Qf8# {[%clk 0:02:19.5]} 1-0

[Event "Late-Titled-Tuesday-Blitz-April-23-2024"]
[Site "Chess.com"]
[Date "2024.04.23"]
[Round "2"]
[White "Eloist"]
[Black "campochess"]
[Result "1-0"]
[WhiteElo "2461"]
[BlackElo "2148"]
[TimeControl "180+1"]
[EndTime "14:15:53 PDT"]
[Termination "Eloist won by resignation"]

1. e4 {[%clk 0:02:55.6]} 1... c5 {[%clk 0:02:59.8]} 2. Nf3 {[%clk 0:02:55.2]}
2... Nc6 {[%clk 0:02:59.9]} 3. Bb5 {[%clk 0:02:55.1]} 3... e5 {[%clk 0:02:59.1]}
4. O-O {[%clk 0:02:53.8]} 4... Bd6 {[%clk 0:02:59]} 5. c3 {[%clk 0:02:53.3]}
5... Nge7 {[%clk 0:02:58.6]} 6. d4 {[%clk 0:02:53.2]} 6... cxd4 {[%clk
0:02:58.3]} 7. cxd4 {[%clk 0:02:54.1]} 7... exd4 {[%clk 0:02:57.5]} 8. Nxd4
{[%clk 0:02:51.1]} 8... Nxd4 {[%clk 0:02:52.9]} 9. Qxd4 {[%clk 0:02:50.2]} 9...
Qb6 {[%clk 0:02:50.9]} 10. Qxb6 {[%clk 0:02:40.9]} 10... axb6 {[%clk 0:02:49.9]}
11. Be3 {[%clk 0:02:28.8]} 11... Bc5 {[%clk 0:02:47.9]} 12. Bxc5 {[%clk
0:02:18]} 12... bxc5 {[%clk 0:02:47]} 13. Nc3 {[%clk 0:02:17.9]} 13... O-O
{[%clk 0:02:45.9]} 14. Rad1 {[%clk 0:02:17.3]} 14... Rd8 {[%clk 0:02:37.1]} 15.
Rd2 {[%clk 0:02:14.3]} 15... f5 {[%clk 0:02:24.6]} 16. Rfd1 {[%clk 0:02:03.2]}
16... fxe4 {[%clk 0:02:23.9]} 17. Bxd7 {[%clk 0:01:59.8]} 17... Bxd7 {[%clk
0:02:22.4]} 18. Rxd7 {[%clk 0:02:00.7]} 18... Rxd7 {[%clk 0:02:22]} 19. Rxd7
{[%clk 0:02:01.5]} 19... Nf5 {[%clk 0:02:16.6]} 20. Rd5 {[%clk 0:01:37]} 20...
g6 {[%clk 0:02:12.3]} 21. Rxc5 {[%clk 0:01:35.4]} 21... Rd8 {[%clk 0:02:10.7]}
22. Rd5 {[%clk 0:01:35.1]} 22... Ra8 {[%clk 0:02:09.7]} 23. Rd7 {[%clk
0:01:30.1]} 23... e3 {[%clk 0:02:08.8]} 24. fxe3 {[%clk 0:01:28.1]} 24... Nxe3
{[%clk 0:02:08.7]} 25. Kf2 {[%clk 0:01:25]} 25... Nc4 {[%clk 0:02:07.5]} 26.
Rxb7 {[%clk 0:01:23.6]} 26... Rf8+ {[%clk 0:02:05.5]} 27. Ke2 {[%clk 0:01:23.3]}
27... Re8+ {[%clk 0:02:04.1]} 28. Kd3 {[%clk 0:01:21.4]} 28... Ne3 {[%clk
0:02:03.8]} 29. a4 {[%clk 0:01:17.6]} 29... Nxg2 {[%clk 0:02:02.7]} 30. a5
{[%clk 0:01:17.9]} 30... Nf4+ {[%clk 0:02:02.4]} 31. Kc2 {[%clk 0:01:14.6]}
31... Ne6 {[%clk 0:01:40.4]} 32. b4 {[%clk 0:01:10.1]} 32... Rc8 {[%clk
0:01:37.4]} 33. a6 {[%clk 0:01:04.9]} 1-0

[Event "Late-Titled-Tuesday-Blitz-April-23-2024"]
[Site "Chess.com"]
[Date "2024.04.23"]
[Round "2"]
[White "Bugcrusher"]
[Black "KebabJangles"]
[Result "1-0"]
[WhiteElo "2493"]
[BlackElo "2216"]
[TimeControl "180+1"]
[EndTime "14:15:55 PDT"]
[Termination "Bugcrusher won by resignation"]

1. d4 {[%clk 0:02:57.7]} 1... Nf6 {[%clk 0:02:58.6]} 2. c4 {[%clk 0:02:57.7]}
2... g6 {[%clk 0:02:58.3]} 3. Nc3 {[%clk 0:02:57.3]} 3... Bg7 {[%clk 0:02:58.8]}
4. e4 {[%clk 0:02:57.2]} 4... d6 {[%clk 0:02:57.4]} 5. Nf3 {[%clk 0:02:58.1]}
5... O-O {[%clk 0:02:56.4]} 6. Be2 {[%clk 0:02:58.7]} 6... e5 {[%clk 0:02:48.1]}
7. O-O {[%clk 0:02:58.2]} 7... Nc6 {[%clk 0:02:47.8]} 8. d5 {[%clk 0:02:58.2]}
8... Ne7 {[%clk 0:02:47.7]} 9. Qc2 {[%clk 0:02:58.9]} 9... a5 {[%clk 0:02:45.5]}
10. Rd1 {[%clk 0:02:58.9]} 10... Nd7 {[%clk 0:02:45.3]} 11. b3 {[%clk
0:02:50.5]} 11... h6 {[%clk 0:02:43.9]} 12. Ne1 {[%clk 0:02:45.4]} 12... f5
{[%clk 0:02:43]} 13. Nd3 {[%clk 0:02:45.3]} 13... f4 {[%clk 0:02:42.9]} 14. Bg4
{[%clk 0:02:41.9]} 14... Nf6 {[%clk 0:02:41.4]} 15. Bxc8 {[%clk 0:02:35.8]}
15... Qxc8 {[%clk 0:02:42.3]} 16. f3 {[%clk 0:02:35.2]} 16... b6 {[%clk
0:02:42.2]} 17. a3 {[%clk 0:02:34.7]} 17... g5 {[%clk 0:02:42]} 18. Bd2 {[%clk
0:02:30.6]} 18... g4 {[%clk 0:02:42.3]} 19. Be1 {[%clk 0:02:22.3]} 19... Ng6
{[%clk 0:02:39.4]} 20. b4 {[%clk 0:02:21.2]} 20... Rf7 {[%clk 0:02:37.8]} 21. c5
{[%clk 0:02:20.4]} 21... Bf8 {[%clk 0:02:38.1]} 22. Nb5 {[%clk 0:02:17.3]} 22...
h5 {[%clk 0:02:36.4]} 23. cxd6 {[%clk 0:02:15.9]} 23... cxd6 {[%clk 0:02:34.5]}
24. Qxc8 {[%clk 0:02:15.5]} 24... Rxc8 {[%clk 0:02:35.4]} 25. Rdc1 {[%clk
0:02:13.3]} 25... Rb8 {[%clk 0:02:27.3]} 26. Rc6 {[%clk 0:02:10]} 26... gxf3
{[%clk 0:02:26.1]} 27. gxf3 {[%clk 0:02:09.3]} 27... Ne8 {[%clk 0:02:26.1]} 28.
Rac1 {[%clk 0:02:02.4]} 28... Ne7 {[%clk 0:02:23]} 29. Nxd6 {[%clk 0:01:54.3]}
29... Nxc6 {[%clk 0:02:20.3]} 30. Nxf7 {[%clk 0:01:54.5]} 30... Nd4 {[%clk
0:02:20.4]} 31. Nfxe5 {[%clk 0:01:40.8]} 31... Ne2+ {[%clk 0:02:19.2]} 32. Kg2
{[%clk 0:01:41.2]} 32... Nxc1 {[%clk 0:02:20.1]} 33. Nxc1 {[%clk 0:01:41.2]}
33... axb4 {[%clk 0:02:20.2]} 34. axb4 {[%clk 0:01:40.2]} 34... Rc8 {[%clk
0:02:17.7]} 35. Ncd3 {[%clk 0:01:39.7]} 35... Rc2+ {[%clk 0:02:13]} 36. Kh3
{[%clk 0:01:39.8]} 36... Nf6 {[%clk 0:02:10.7]} 37. Nxf4 {[%clk 0:01:37.4]}
37... Bd6 {[%clk 0:02:09.9]} 38. Ned3 {[%clk 0:01:34]} 38... Nd7 {[%clk
0:02:09.9]} 39. Bg3 {[%clk 0:01:25]} 39... Ne5 {[%clk 0:02:07.5]} 40. Nxe5
{[%clk 0:01:24.5]} 40... Bxe5 {[%clk 0:02:07.6]} 41. Nxh5 {[%clk 0:01:25]} 41...
Bxg3 {[%clk 0:02:06.4]} 42. hxg3 {[%clk 0:01:24.8]} 42... Rc4 {[%clk 0:02:06.6]}
43. e5 {[%clk 0:01:23.7]} 43... Rxb4 {[%clk 0:02:06.6]} 44. d6 {[%clk
0:01:22.9]} 44... Kf7 {[%clk 0:02:06.1]} 45. Nf4 {[%clk 0:01:19.9]} 45... b5
{[%clk 0:01:58.8]} 46. e6+ {[%clk 0:01:19.5]} 46... Ke8 {[%clk 0:01:59.3]} 47.
Nd5 {[%clk 0:01:15.6]} 47... Rb1 {[%clk 0:01:53.7]} 48. e7 {[%clk 0:01:14.2]}
48... Rc1 {[%clk 0:01:52.1]} 49. Nf6+ {[%clk 0:01:13.9]} 1-0